lending/lending_fUSD_20240202
["ID","MTS","AMOUNT","RATE_DAILY","PERIOD"]
[313183727,1706894577780,1354.1497,0.0002246,2]
[313183728,1706894598981,163.45471566,0.00022453,2]
[313183730,1706894616300,409.92,0.00021746,2]
[313183731,1706894667931,250.0,0.0002171,2]
[313183732,1706894677182,309.45,0.0002171,2]
[313183733,1706894696792,151.10829198,0.00022,2]
[313183734,1706894707865,428.63,0.00019792,2]
[313183735,1706894708086,428.63,0.00022056,2]
[313183736,1706894726289,2282.71,0.00021696,2]
[313183737,1706894805090,433.62,0.0002171,2]
[313183738,1706894806646,250.0,0.00021918,2]
[313183739,1706894858061,2031.5,0.00021706,2]
[313183740,1706894916350,176.85,0.00022,2]
[313183741,1706894916582,1852.42,0.00021737,2]
[313183742,1706894922392,1334.92,0.00021719,2]
[313183743,1706894972718,175.74,0.00016712,2]
[313183744,1706895003057,261.97257964,0.00021719,2]
[313183760,1706895032301,-2314.06344386,0.00022508,2]
[313183762,1706895032311,-509.63708493,0.00022508,2]
[313183765,1706895032323,-13.11285632,0.00022508,2]
[313183767,1706895032332,-362.82450126,0.00022509,2]
[313183769,1706895032342,-2826.08602609,0.00022509,2]
[313183774,1706895032376,-213.22458295,0.00022509,2]
[313183776,1706895032386,-355.60856844,0.0002251,2]
[313183778,1706895032395,-155.0,0.00022511,2]
[313183780,1706895032405,-155.0,0.00022511,2]
[313183782,1706895032414,-1092.0,0.00022511,2]
[313183784,1706895032423,-1064.2090234,0.00022512,2]
[313183786,1706895032433,-311.10938782,0.00022513,2]
[313183787,1706895032442,-924.89270561,0.00022513,2]
[313183788,1706895032454,-1409.78153758,0.00022513,2]
[313183789,1706895032467,-575.9799873,0.00022513,2]
[313183790,1706895032476,-52.4400127,0.00022513,2]
[313183791,1706895032506,-97.5599873,0.00022513,2]
[313183792,1706895032515,-150.0,0.00022513,2]
[313183793,1706895032524,-353.01,0.00022548,2]
[313183794,1706895032534,-6783.95,0.00022548,2]
[313183795,1706895032545,-639.48001265,0.00022585,2]
[313183796,1706895032557,-543.29728188,0.00022585,2]
[313183797,1706895032568,-684.71908266,0.00022585,2]
[313183798,1706895032580,-129.39672281,0.00022585,2]
[313183799,1706895032590,-143.06693091,0.00022585,2]
[313183800,1706895032602,-320.6391067,0.00022585,2]
[313183801,1706895033919,-1402.25005701,0.00022585,2]
[313183802,1706895033931,-764.36761815,0.00022585,2]
[313183803,1706895033944,-612.15978723,0.00022585,2]
[313183804,1706895033953,-1023.7664,0.00022585,2]
[313183805,1706895033969,-2270.9025,0.00022585,2]
[313183807,1706895033985,-659.39595449,0.00022586,2]
[313183810,1706895034000,-712.93,0.00022592,2]
[313183812,1706895034011,-499.99,0.00022592,2]
[313183814,1706895034025,-1806.31406471,0.000226,2]
[313183817,1706895034039,-9684.0089987,0.00022601,2]
[313183821,1706895034055,-734.5497216,0.00022665,2]
[313183824,1706895034069,-1457.2267908,0.00022675,2]
[313183826,1706895034080,-163.45471566,0.00022677,2]
[313183829,1706895034093,-564.92440648,0.00022683,2]
[313183831,1706895034107,-768.69623108,0.00022683,2]
[313183834,1706895034121,-235.74772915,0.00022683,2]
[313183836,1706895034134,-1183.66690363,0.00022683,2]
[313183839,1706895034149,-1183.66690363,0.00022683,2]
[313183841,1706895034161,-3591.43127721,0.00022684,2]
[313183844,1706895034176,-533694.76224201,0.00022685,2]
[313183846,1706895034188,-875.56427091,0.00022686,2]
[313183849,1706895034203,-2916.89243027,0.00022686,2]
[313183851,1706895034216,-473.29314073,0.00022686,2]
[313183854,1706895034229,-764.37946186,0.00022686,2]
[313183856,1706895034242,-157.87469733,0.00022686,2]
[313183858,1706895034257,-642.01750535,0.00022686,2]
[313183861,1706895034270,-535.07984939,0.00022686,2]
[313183864,1706895034285,-7791.36306763,0.00022686,2]
[313183866,1706895034298,-301.91289594,0.00022686,2]
[313183867,1706895034309,-950.52621198,0.00022686,2]
[313183868,1706895034321,-229.59242719,0.00022686,2]
[313183869,1706895034334,-203.21501922,0.00022686,2]
[313183870,1706895034347,-197.10035129,0.00022686,2]
[313183871,1706895034361,-343.09423097,0.00022686,2]
[313183872,1706895034372,-368.01428488,0.00022686,2]
[313183873,1706895034383,-164.41942046,0.00022686,2]
[313183874,1706895034394,-5773.63343012,0.00022686,2]
[313183875,1706895034408,-2142.12617352,0.00022686,2]
[313183876,1706895034420,-155.0,0.00022686,2]
[313183877,1706895034431,-486.44925414,0.00022686,2]
[313183878,1706895034443,-242.56332041,0.00022686,2]
[313183879,1706895034455,-155.0,0.00022686,2]
[313183880,1706895034466,-640.3877892,0.00022686,2]
[313183881,1706895034478,-2619.74608901,0.00022686,2]
[313183882,1706895034490,-1256.24889353,0.00022686,2]
[313183883,1706895034502,-376.165677,0.00022686,2]
[313183884,1706895034513,-1224.40629802,0.00022686,2]
[313183885,1706895034525,-265.75241527,0.00022686,2]
[313183886,1706895034537,-16742.28246426,0.00022687,2]
[313183887,1706895034552,-1815.13226475,0.00022688,2]
[313183888,1706895034563,-10572.76791723,0.00022688,2]
[313183889,1706895034575,-17250.57593081,0.00022688,2]
[313183890,1706895034588,-16801.20215262,0.00022688,2]
[313183891,1706895034600,-3758.52496967,0.00022688,2]
[313183892,1706895034612,-155.0,0.00022688,2]
[313183893,1706895034625,-4495.8450525,0.00022689,2]
[313183894,1706895034637,-59102.8988,0.0002269,2]
[313183895,1706895034649,-500.0,0.00022697,2]
[313183896,1706895034661,-1966.93785816,0.00022698,2]
[313183897,1706895034673,-195.10400093,0.00022698,2]
[313183898,1706895034685,-169.34319835,0.00022698,2]
[313183899,1706895034696,-1000.0,0.000227,2]
[313183900,1706895034707,-248.60332856,0.00022769,2]
[313183901,1706895034719,-433.62,0.00022796,2]
[313183902,1706895034731,-268.17443877,0.00022797,2]
[313183903,1706895034743,-386374.26803441,0.00022797,2]
[313183904,1706895034758,-6519.6,0.00022797,2]
[313183905,1706895034780,-17607.08082362,0.00022797,2]
[313183906,1706895034821,-1974.8225,0.00022797,2]
[313183907,1706895034836,-3629.69804124,0.00022797,2]
[313183908,1706895034850,-472.06158776,0.00022797,2]
[313183909,1706895034865,-1262.89118739,0.00022797,2]
[313183918,1706895038411,-2095.91758965,0.00022797,2]
[313183919,1706895038424,-4758.74190659,0.00022797,2]
[313183920,1706895038436,-848.7923766,0.00022797,2]
[313183921,1706895038448,-2717.8190038,0.00022797,2]
[313183922,1706895038460,-465.55918947,0.00022797,2]
[313183923,1706895038529,-587.673,0.00022797,2]
[313183924,1706895038541,-607.5005193,0.00022797,2]
[313183925,1706895038559,-423.2307416,0.00022797,2]
[313183926,1706895038579,-45259.11786839,0.00022797,2]
[313183927,1706895038591,-13219.78334358,0.00022797,2]
[313183928,1706895038603,-18537.92575544,0.00022797,2]
[313183929,1706895038612,-1052.17110452,0.00022798,2]
[313183930,1706895038622,-279.83597365,0.00022798,2]
[313183931,1706895038632,-2104.21740325,0.00022799,2]
[313183932,1706895038649,-1343.29667571,0.00022799,2]
[313183933,1706895038660,-3704.77177377,0.00022799,2]
[313183934,1706895038672,-7538.90702834,0.00022799,2]
[313183935,1706895038684,-428.64964192,0.00022799,2]
[313183953,1706895040961,-2440.917,0.00022799,2]
[313183954,1706895041072,-385.81464067,0.00022799,2]
[313183955,1706895041084,-593.28660953,0.00022799,2]
[313183956,1706895041097,-433.105,0.00022799,2]
[313183957,1706895041147,-2365.40788766,0.00022799,2]
[313183958,1706895041193,-31811.95883841,0.00022799,2]
[313183959,1706895041207,-1682.91840074,0.00022799,2]
[313183960,1706895041217,-723.91,0.00022799,2]
[313183961,1706895041226,-1685.62407635,0.00022799,2]
[313183962,1706895041240,-559.68162365,0.00022799,2]
[313183963,1706895041250,-200.0,0.00022816,2]
[313183964,1706895041260,-800.0,0.00022816,2]
[313183965,1706895041270,-163.45471566,0.000229,2]
[313183966,1706895041281,-156.10219165,0.000229,2]
[313183967,1706895041291,-2977.6729,0.000229,2]
[313183968,1706895041301,-198.58536634,0.000229,2]
[313183969,1706895041310,-4581.3106735,0.00022997,2]
[313183970,1706895041320,-1214.82418585,0.00022997,2]
[313183971,1706895041331,-2245.7695183,0.00022997,2]
[313183972,1706895041855,-62159.08724775,0.00022997,2]
[313183973,1706895041865,-2802.3612886,0.00022997,2]
[313183974,1706895041874,-504.85794256,0.00022998,2]
[313183975,1706895041884,-156.65326466,0.00022998,2]
[313183976,1706895041894,-244.00082597,0.00022998,2]
[313183977,1706895041903,-155.0,0.00022998,2]
[313183978,1706895041912,-580.85669802,0.00022998,2]
[313183979,1706895041922,-1855.69106957,0.00022998,2]
[313183980,1706895041933,-155.0,0.00022999,2]
[313183981,1706895041943,-20948.4771273,0.00022999,2]
[313183982,1706895041954,-2134.22040318,0.00022999,2]
[313183983,1706895041963,-177604.16894096,0.00023,2]
[313183986,1706895041979,-296.12134139,0.00023,2]
[313183988,1706895041991,-634.66,0.00023,2]
[313183990,1706895042002,-500.0,0.00023,2]
[313183992,1706895042014,-295.41653518,0.00023,2]
[313183994,1706895042025,-752.08599537,0.00023,2]
[313183996,1706895042036,-366.43596909,0.00023,2]
[313184015,1706895043380,-450.0,0.00023,2]
[313184016,1706895043393,-741.91047136,0.00023,2]
[313184017,1706895043432,-361.91533815,0.00022798,2]
[313184018,1706895043442,-11343.4434303,0.00023,2]
[313184019,1706895043541,-729.1269037,0.00023,2]
[313184020,1706895043597,-17117.62609,0.00023,2]
[313184021,1706895043654,-767.06868834,0.00023,2]
[313184022,1706895043666,-277.32099991,0.00023,2]
[313184025,1706895043787,-369.894879,0.00023,2]
[313184026,1706895043806,-6493.28448736,0.00023,2]
[313184033,1706895046447,-360.14113485,0.00022798,2]
[313184034,1706895046457,-158.45590132,0.00022999,2]
[313184035,1706895046466,-1280.43067741,0.00022999,2]
[313184036,1706895046476,-1089331.22347623,0.00023,2]
[313184037,1706895046711,-4812.04182535,0.00023,2]
[313184039,1706895046736,-359.24718817,0.00023,2]
[313184042,1706895046763,-525.22306113,0.00023,2]
[313184043,1706895046783,-892.9623729,0.00023,2]
[313184070,1706895069950,155.16714405,0.00021719,2]
[313184071,1706895069982,3136.12715487,0.00021847,2]
[313184072,1706895070683,156.50253449,0.00021719,2]
[313184073,1706895071712,869.83474751,0.00021719,2]
[313184074,1706895073249,234.26434059,0.00021719,2]
[313184075,1706895077038,1238.91950962,0.00022998,3]
[313184076,1706895077161,1030.76306158,0.00022999,3]
[313184077,1706895077653,1190.46137442,0.00023,3]
[313184078,1706895077736,233.25757119,0.00021719,2]
[313184079,1706895077957,160.0131151,0.00021719,2]
[313184080,1706895077985,874.35219416,0.00021719,2]
[313184081,1706895079343,176.52540934,0.00021719,2]
[313184082,1706895087932,3136.12715487,0.00021847,2]
[313184083,1706895089663,171.17,0.00018007,2]
[313184084,1706895092381,732.18690129,0.00021,2]
[313184085,1706895103439,208.572043,0.00022395,2]
[313184086,1706895105937,919.58170249,0.00021847,2]
[313184087,1706895116321,1574.73727311,0.00022077,2]
[313184105,1706895147262,157.18015285,0.00021719,2]
[313184106,1706895149998,450.45405213,0.00022996,3]
[313184107,1706895150042,332.4842591,0.00022999,3]
[313184108,1706895150111,368.33307635,0.00022999,3]
[313184109,1706895165244,156.21183435,0.00022077,2]
[313184110,1706895178313,672.06,0.00022092,2]
[313184111,1706895198780,447.64,0.00020103,2]
[313184112,1706895199030,447.64,0.00022367,2]
[313184113,1706895203458,282.89706329,0.00022092,2]
[313184114,1706895205903,847.06410669,0.00022092,2]
[313184115,1706895215401,154.03,0.00022006,2]
[313184116,1706895216606,-286.26046709,0.00022503,2]
[313184117,1706895216627,-313.73953291,0.00022504,2]
[313184118,1706895224810,232.70139851,0.00022996,3]
[313184119,1706895224889,166.0276452,0.00022999,3]
[313184120,1706895231524,177.338587,0.00022408,2]
[313184121,1706895273822,205.0,0.00022053,2]
[313184122,1706895315595,750.0,0.00021932,2]
[313184123,1706895320991,2034.54,0.00021932,2]
[313184124,1706895337426,667.46,0.00021932,2]
[313184125,1706895370017,150.0,0.00022,2]
[313184126,1706895437260,150.0,0.00022,2]
[313184127,1706895480518,355.60856844,0.000225,2]
[313184128,1706895485107,3048.75,0.00021953,2]
[313184129,1706895490713,181.12,0.00021941,2]
[313184130,1706895502659,163.17,0.00022107,2]
[313184131,1706895505638,165.47361638,0.00022407,2]
[313184132,1706895529329,12364.09455309,0.000225,2]
[313184133,1706895539407,179.5828,0.00022403,2]
[313184134,1706895540935,500.0,0.00021921,2]
[313184135,1706895541425,10000.0,0.00024998,35]
[313184136,1706895547030,311.10938782,0.000225,2]
[313184137,1706895574753,250.0,0.00021939,2]
[313184138,1706895601120,462.35,0.00021948,2]
[313184139,1706895642592,443.08,0.00021939,2]
[313184140,1706895714620,260.17,0.00021915,2]
[313184141,1706895727079,200.0,0.00021915,2]
[313184142,1706895734201,465.89,0.00019997,2]
[313184143,1706895734422,465.89,0.00022261,2]
[313184144,1706895766805,556.21,0.00022066,2]
[313184145,1706895774536,250.0,0.00021919,2]
[313184146,1706895795102,150.0,0.00021922,2]
[313184147,1706895839768,200.0,0.0002191,2]
[313184148,1706895843498,500.0,0.0002191,2]
[313184149,1706895937854,200.0,0.00021898,2]
[313184150,1706895959851,1980.14,0.00021898,2]
[313184151,1706896020965,250.0,0.00021897,2]
[313184152,1706896043307,-177.338587,0.00022531,2]
[313184153,1706896043327,-150.0,0.00022548,2]
[313184154,1706896043348,-2910.65423049,0.00022558,2]
[313184155,1706896043368,-738.35,0.00022559,2]
[313184156,1706896043387,-714.4,0.00022567,2]
[313184157,1706896043406,-150.0,0.00022568,2]
[313184158,1706896043426,-300.0,0.00022568,2]
[313184159,1706896043446,-2859.25718251,0.00022569,2]
[313184160,1706896095922,19973.2759571,0.000235,3]
[313184161,1706896141908,177.338587,0.0002247,2]
[313184162,1706896144482,428.31105791,0.00021664,2]
[313184163,1706896161097,160.044691,0.00022455,2]
[313184164,1706896164229,630.12,0.00021971,2]
[313184165,1706896170098,153.99,0.00021971,2]
[313184166,1706896184888,500.0,0.00022,2]
[313184167,1706896191925,157.23956064,0.00021971,2]
[313184168,1706896191983,389.35,0.00021998,2]
[313184169,1706896201295,150.0,0.00022,2]
[313184170,1706896202342,2309.0349,0.00022469,2]
[313184171,1706896207948,157.23956064,0.00021971,2]
[313184172,1706896208445,155.0,0.0002,2]
[313184173,1706896229939,157.23956064,0.00021971,2]
[313184200,1706896231525,-150.89419686,0.00022548,2]
[313184202,1706896231535,-150.0,0.00022568,2]
[313184204,1706896231545,-150.0,0.00022568,2]
[313184206,1706896231554,-9667.38453442,0.00022569,2]
[313184208,1706896231566,-605.0,0.00022569,2]
[313184209,1706896231589,-1000.0,0.00022569,2]
[313184210,1706896231602,-770.0,0.00022569,2]
[313184211,1706896231638,-20305.37445493,0.00022569,2]
[313184212,1706896231648,-726.43,0.0002257,2]
[313184213,1706896231657,-3144.5552,0.00022585,2]
[313184214,1706896231665,-1000.0,0.00022585,2]
[313184215,1706896231674,-177.338587,0.00022685,2]
[313184216,1706896231684,-15000.0,0.0002269,2]
[313184217,1706896231693,-300.0,0.00022697,2]
[313184218,1706896231702,-499.99,0.00022697,2]
[313184219,1706896231711,-1000.0,0.000227,2]
[313184220,1706896231720,-178.94563572,0.000228,2]
[313184221,1706896231729,-20844.65674403,0.000228,2]
[313184222,1706896231741,-7882.50225597,0.000228,2]
[313184223,1706896231754,-200.0,0.00022816,2]
[313184224,1706896231763,-200.0,0.00022816,2]
[313184225,1706896231772,-800.0,0.00022816,2]
[313184226,1706896231781,-155.0,0.00022882,2]
[313184227,1706896231791,-545.9016,0.00022897,2]
[313184228,1706896231800,-408.8326,0.00022899,2]
[313184229,1706896231809,-651.10429713,0.00022899,2]
[313184230,1706896231817,-532.4027298,0.00022899,2]
[313184231,1706896231826,-2077.20894553,0.000229,2]
[313184232,1706896231835,-195.10400093,0.000229,2]
[313184233,1706896231844,-989.91982667,0.000229,2]
[313184234,1706896231853,-156.17243626,0.000229,2]
[313184235,1706896231862,-169.34319834,0.000229,2]
[313184236,1706896231872,-177.338587,0.000229,2]
[313184237,1706896231881,-5000.0,0.000229,2]
[313184238,1706896231892,-324.44752251,0.000229,2]
[313184239,1706896231902,-800.0,0.00022959,2]
[313184240,1706896231910,-205.0,0.00022972,2]
[313184241,1706896231919,-151.12841012,0.00022989,2]
[313184242,1706896231929,-315.44377251,0.00022991,2]
[313184243,1706896231938,-1670.17717631,0.00022992,2]
[313184244,1706896231947,-35000.0,0.00022993,2]
[313184245,1706896231957,-434.49847608,0.00022995,2]
[313184246,1706896231966,-155.0,0.00022995,2]
[313184247,1706896231975,-486.78694332,0.00022995,2]
[313184248,1706896231985,-195.57791503,0.00022995,2]
[313184249,1706896231997,-308.48147351,0.00022995,2]
[313184250,1706896232006,-66529.6071944,0.00022995,2]
[313184251,1706896232015,-5899.5064647,0.00022995,2]
[313184252,1706896232025,-8201.4946108,0.00022995,2]
[313184253,1706896232034,-9704.70313385,0.00022996,2]
[313184254,1706896232043,-184.28653589,0.00022996,2]
[313184255,1706896232052,-155.0,0.00022997,2]
[313184256,1706896232061,-487.99435337,0.00022997,2]
[313184257,1706896232071,-768.69623108,0.00022997,2]
[313184258,1706896232080,-163.86852598,0.00022997,2]
[313184259,1706896232089,-236.65088302,0.00022997,2]
[313184260,1706896232099,-498.59846191,0.00022997,2]
[313184261,1706896232108,-235.16261925,0.00022997,2]
[313184262,1706896232117,-156.34963665,0.00022997,2]
[313184263,1706896232125,-179.42789905,0.00022997,2]
[313184264,1706896232135,-1751.82074586,0.00022997,2]
[313184265,1706896232144,-1254.84755188,0.00022997,2]
[313184266,1706896232153,-155.0,0.00022997,2]
[313184267,1706896232162,-412.98601671,0.00022997,2]
[313184268,1706896232171,-473.54978766,0.00022997,2]
[313184269,1706896232180,-1812.62303913,0.00022997,2]
[313184270,1706896232190,-203.43210543,0.00022997,2]
[313184271,1706896232199,-155.0,0.00022997,2]
[313184272,1706896232209,-16530.57401223,0.00022997,2]
[313184273,1706896232219,-225.94720434,0.00022997,2]
[313184274,1706896232228,-271.54089482,0.00022997,2]
[313184275,1706896232237,-400.0,0.00022997,2]
[313184276,1706896232248,-941.96786961,0.00022997,2]
[313184277,1706896232257,-1047.28946763,0.00022997,2]
[313184278,1706896232266,-156.87479774,0.00022997,2]
[313184279,1706896232275,-655.21645281,0.00022997,2]
[313184280,1706896232284,-466.22908506,0.00022997,2]
[313184281,1706896232293,-10864.93651832,0.00022997,2]
[313184282,1706896232302,-253.85526062,0.00022997,2]
[313184283,1706896232422,-1136.8526006,0.00022997,2]
[313184284,1706896232432,-1848.16516899,0.00022997,2]
[313184285,1706896232441,-1050.70548747,0.00022997,2]
[313184286,1706896232451,-185.5600203,0.00022997,2]
[313184287,1706896232460,-155.0,0.00022997,2]
[313184288,1706896232470,-302.79374032,0.00022997,2]
[313184289,1706896232479,-201.71921882,0.00022997,2]
[313184290,1706896232488,-12104.26976051,0.00022998,2]
[313184291,1706896232499,-270.09493168,0.00022998,2]
[313184292,1706896232509,-22135.53,0.00022998,2]
[313184293,1706896232519,-157.76612977,0.00022999,2]
[313184294,1706896232528,-342.60580933,0.00022999,2]
[313184295,1706896232537,-2316.80534768,0.00022999,2]
[313184296,1706896232547,-62601.06196963,0.00022999,2]
[313184297,1706896232559,-601.42389288,0.00022999,2]
[313184298,1706896232796,-639.29473813,0.00022999,2]
[313184299,1706896232807,-2163.55,0.00022999,2]
[313184301,1706896232819,-2470.0,0.00022999,2]
[313184303,1706896232831,-1566.36444187,0.00022999,2]
[313184306,1706896232843,-861.17642,0.00022999,2]
[313184308,1706896232854,-4693.35318839,0.00022999,2]
[313184323,1706896233037,-4805.83630706,0.00022999,2]
[313184324,1706896233048,-3147.52857791,0.00022999,2]
[313184339,1706896237527,-17816.88699591,0.00022999,2]
[313184340,1706896237543,-405996.00693706,0.00022999,2]
[313184341,1706896237554,-17795.109418,0.00022999,2]
[313184342,1706896237563,-324.79163949,0.00022999,2]
[313184343,1706896237573,-1722390.0629603,0.00023,2]
[313184344,1706896237583,-1530717.19610198,0.00023,2]
[313184345,1706896237593,-515.78092806,0.00023,2]
[313184346,1706896237602,-2000.0,0.00023,2]
[313184347,1706896237611,-200.0,0.00023,2]
[313184348,1706896237621,-304.667093,0.00023,2]
[313184349,1706896237630,-1500.0,0.00023,2]
[313184350,1706896237640,-150.0,0.00023,2]
[313184351,1706896237650,-200.39054888,0.00023004,2]
[313184352,1706896237659,-155.42693317,0.00023004,2]
[313184353,1706896237669,-155.53343766,0.00023004,2]
[313184354,1706896237678,-157.18996654,0.00023004,2]
[313184355,1706896237688,-260.17,0.00023011,2]
[313184356,1706896237697,-21469.20015038,0.0002313,2]
[313184357,1706896237707,-1000.0,0.000232,2]
[313184358,1706896237717,-734.5497217,0.00023228,2]
[313184359,1706896237728,-1473.04723596,0.00023228,2]
[313184360,1706896237738,-2000.0,0.0002323,2]
[313184361,1706896237748,-200.0,0.0002323,2]
[313184362,1706896237758,-300.0,0.00023267,2]
[313184363,1706896237767,-150.0,0.000234,2]
[313184364,1706896237777,-200.0,0.00023462,2]
[313184365,1706896237787,-1500.0,0.000235,2]
[313184366,1706896237797,-2601.92040923,0.000235,2]
[313184367,1706896237807,-1485.424,0.000235,2]
[313184368,1706896237816,-1980.14,0.00023542,2]
[313184369,1706896237827,-29614.0,0.000236,2]
[313184370,1706896237836,-3988.0,0.000236,2]
[313184371,1706896237845,-184.63158125,0.00023697,2]
[313184372,1706896237854,-761.0224,0.00023899,2]
[313184373,1706896237863,-345.0,0.000239,2]
[313184374,1706896237874,-500.91029671,0.00023998,2]
[313184375,1706896237885,-118146.9962223,0.00023999,2]
[313184380,1706896238020,-201.77568224,0.00024,2]
[313184381,1706896238030,-564.20026797,0.000241,2]
[313184382,1706896238040,-260.17,0.00024107,2]
[313184383,1706896238049,-1140.73,0.00024154,2]
[313184384,1706896238059,-2077.20894548,0.00024264,2]
[313184385,1706896238068,-159.5,0.00024297,2]
[313184386,1706896238077,-168.5,0.00024297,2]
[313184387,1706896238086,-166.75911386,0.000243,2]
[313184388,1706896238096,-156.17243622,0.00024325,2]
[313184389,1706896238106,-6187.62,0.00024384,2]
[313184390,1706896238115,-325.91398888,0.0002442,2]
[313184391,1706896238124,-532.4027298,0.00024558,2]
[313184392,1706896238134,-300.0,0.00024637,2]
[313184393,1706896238143,-10000.0,0.00024658,2]
[313184394,1706896238153,-2500.0,0.00024658,3]
[313184395,1706896238162,-250.0,0.00024658,2]
[313184396,1706896238179,-462.35,0.00024692,2]
[313184397,1706896238191,-630.12,0.00024718,2]
[313184398,1706896238201,-210.0,0.00024825,2]
[313184399,1706896238211,-495.331,0.00024964,2]
[313184400,1706896238220,-220.545,0.00024964,2]
[313184401,1706896238231,-951.43,0.00024964,2]
[313184402,1706896238241,-2867.0,0.00024964,2]
[313184403,1706896238251,-839.0,0.00024964,2]
[313184404,1706896238260,-950.0,0.00024964,2]
[313184405,1706896238272,-1234.0,0.00024964,2]
[313184406,1706896238285,-1250.0,0.00024964,2]
[313184407,1706896238295,-286.75,0.00024964,2]
[313184408,1706896238305,-236.0,0.00024964,2]
[313184409,1706896238315,-1001.0,0.00024964,2]
[313184410,1706896238325,-1941.0,0.00024964,2]
[313184411,1706896238335,-428.0,0.00024964,2]
[313184412,1706896238345,-861.399,0.00024964,2]
[313184413,1706896238355,-1138.0,0.00024964,2]
[313184414,1706896238365,-150.0,0.00024964,2]
[313184415,1706896238374,-317.0,0.00024964,2]
[313184416,1706896238383,-342.0,0.00024964,2]
[313184417,1706896238393,-8133.0,0.00024964,2]
[313184418,1706896238403,-19779.0,0.00024964,2]
[313184419,1706896238412,-7386.0,0.00024964,2]
[313184420,1706896238422,-150.746,0.00024964,2]
[313184421,1706896238432,-2282.0,0.00024964,2]
[313184422,1706896238441,-2916.0,0.00024964,2]
[313184423,1706896238451,-3043.7,0.00024964,2]
[313184424,1706896238461,-200.0,0.00024964,2]
[313184425,1706896238471,-181.269,0.00024964,2]
[313184426,1706896238480,-205.09,0.00024964,2]
[313184427,1706896238490,-150.598,0.00024964,2]
[313184428,1706896238500,-1034.0,0.00024964,2]
[313184429,1706896238509,-1999.9999999,0.00024998,2]
[313184430,1706896238519,-200.0,0.00024998,2]
[313184431,1706896238530,-936.6209496,0.00025,2]
[313184432,1706896238540,-159.24196843,0.00025,2]
[313184433,1706896238551,-1905.81852245,0.00025,2]
[313184434,1706896238561,-202.68780413,0.00025,2]
[313184435,1706896238571,-167.92991373,0.00025,2]
[313184436,1706896238581,-1588.97256459,0.00025,2]
[313184437,1706896238590,-304.48967897,0.00025,2]
[313184438,1706896238600,-2321.04322435,0.00025,2]
[313184439,1706896238609,-853.64604181,0.00025,2]
[313184440,1706896238619,-208.50660061,0.00025,4]
[313184441,1706896238629,-653.40754688,0.00025,7]
[313184442,1706896238638,-200.77793049,0.00025,2]
[313184443,1706896238648,-422.91926643,0.00025,2]
[313184444,1706896238657,-450.0,0.00025,3]
[313184445,1706896238667,-481.164098,0.00025,2]
[313184446,1706896238676,-200.0,0.00025,2]
[313184447,1706896238686,-3000.0,0.00025,2]
[313184448,1706896238695,-200.0,0.00025,2]
[313184449,1706896238704,-675.930451,0.00025,2]
[313184450,1706896238714,-1140.73,0.00025008,2]
[313184451,1706896238724,-3000.0,0.0002501,2]
[313184452,1706896238733,-4643.65473,0.0002502,2]
[313184453,1706896238743,-651.1042971,0.00025042,2]
[313184454,1706896238752,-154.48390016,0.0002509,2]
[313184455,1706896238761,-1328.35038484,0.000251,2]
[313184456,1706896238771,-1980.14,0.00025186,2]
[313184457,1706896238780,-260.17,0.00025203,2]
[313184458,1706896238790,-168.5,0.00025299,2]
[313184459,1706896238800,-1000.0,0.00025461,3]
[313184460,1706896238809,-274.86055864,0.0002549,2]
[313184461,1706896238818,-1000.0,0.000255,2]
[313184462,1706896238828,-200.0,0.000255,2]
[313184463,1706896238839,-1000.0,0.00025595,3]
[313184464,1706896238848,-163.08165836,0.000256,2]
[313184465,1706896238858,-2077.20894548,0.00025627,2]